Workbook

Sheet 計算シート
B2: ウェイト用カウンタ値の最適解計算 | H2: 使用方法
H3: 1. NOPx と CNTx に値を直接入力して、LOOPx と Tx を自動計算できます。
B4: グローバル設定 | H4: 1.1. +/- ボタンをクリックして、値を増減できます。
B5: 動作クロック周波数 [MHz] | E5: 10 | H5: 2. LOOPx あるいは Tx に目標値を設定し、ソルバーを利用して最適な NOPx と CNTx を求められます。
B6: エンベロープの大きさ [c] | E6: 0
B8: 1段 | F8: 2段 | J8: 3段 | N8: 4段
B10: NOP上限 | D10: 目標値 [c] | E10: 目標値 [μs] | F10: NOP上限 | H10: 目標値 [c] | I10: 目標値 [ms] | J10: NOP上限 | L10: 目標値 [c] | M10: 目標値 [s] | N10: NOP上限 | P10: 目標値 [c] | Q10: 目標値 [s]
B11: 3 | D11: 260 | E11: 100 | F11: 2 | H11: 30000 | I11: 1000 | J11: 2 | L11: 2500000 | M11: 1 | N11: 5 | P11: 200000000 | Q11: 75
B13: NOP [c] | C13: CNT1 | D13: LOOP1 [c] | E13: T1 [μs] | F13: NOP1 | G13: CNT2 | H13: LOOP2 [c] | I13: T2 [ms] | J13: NOP2 | K13: CNT3 | L13: LOOP3 [c] | M13: T3 [s] | N13: NOP3 | O13: CNT4 | P13: LOOP4 [c] | Q13: T4 [s]
B14: =B11*2 -> 6 | C14: 256 | D14: =1+(B14+3)*C14+$E$6 -> 2305 | E14: =D14*4/$E$5 -> 922 | F14: =F11*2 -> 4 | G14: 256 | H14: =1+(D14-$E$6+F14+3)*G14+$E$6 -> 591873 | I14: =H14*4/$E$5/1000 -> 236.7492 | J14: =J11*2 -> 4 | K14: 256 | L14: =1+(H14-$E$6+J14+3)*K14+$E$6 -> 151521281 | M14: =L14*4/$E$5/1000/1000 -> 60.6085124 | N14: =N11*2 -> 10 | O14: 256 | P14: =1+(L14-$E$6+N14+3)*O14+$E$6 -> 38789451265 | Q14: =P14*4/$E$5/1000/1000 -> 15515.78051
B15: 0 | C15: 86 | D15: =1+(B15+3)*C15+$E$6 -> 259 | E15: =D15*4/$E$5 -> 103.6 | F15: 0 | G15: 63 | H15: =1+(D15-$E$6+F15+3)*G15+$E$6 -> 16507 | I15: =H15*4/$E$5/1000 -> 6.6028 | J15: 0 | K15: 102 | L15: =1+(H15-$E$6+J15+3)*K15+$E$6 -> 1684021 | M15: =L15*4/$E$5/1000/1000 -> 0.6736084 | N15: 6 | O15: 256 | P15: =1+(L15-$E$6+N15+3)*O15+$E$6 -> 431111681 | Q15: =P15*4/$E$5/1000/1000 -> 172.4446724
B16: 0 | C16: 1 | D16: =1+(B16+3)*C16+$E$6 -> 4 | E16: =D16*4/$E$5 -> 1.6 | F16: 0 | G16: 1 | H16: =1+(D16-$E$6+F16+3)*G16+$E$6 -> 8 | I16: =H16*4/$E$5/1000 -> 0.0032 | J16: 0 | K16: 1 | L16: =1+(H16-$E$6+J16+3)*K16+$E$6 -> 12 | M16: =L16*4/$E$5/1000/1000 -> 4.8e-06 | N16: 0 | O16: 1 | P16: =1+(L16-$E$6+N16+3)*O16+$E$6 -> 16 | Q16: =P16*4/$E$5/1000/1000 -> 6.4e-06
D18: Δ [c] | E18: Δ [μs] | H18: Δ [c] | I18: Δ [ms] | L18: Δ [c] | M18: Δ [s] | P18: Δ [c] | Q18: Δ [s]
D19: =D15-D11 -> -1 | E19: =E15-E11 -> 3.6 | H19: =H15-H11 -> -13493 | I19: =I15-I11 -> -993.3972 | L19: =L15-L11 -> -815979 | M19: =M15-M11 -> -0.3263916 | P19: =P15-P11 -> 231111681 | Q19: =Q15-Q11 -> 97.4446724
D20: =(D15-D11)/D11 -> -0.003846153846 | E20: =(E15-E11)/E11 -> 0.036 | H20: =(H15-H11)/H11 -> -0.4497666667 | I20: =(I15-I11)/I11 -> -0.9933972 | L20: =(L15-L11)/L11 -> -0.3263916 | M20: =(M15-M11)/M11 -> -0.3263916 | P20: =(P15-P11)/P11 -> 1.155558405 | Q20: =(Q15-Q11)/Q11 -> 1.299262299
J22: ソルバー用設定内容ストア
J24: LOOP1 | K24: T1 | L24: LOOP2 | M24: T2 | N24: LOOP3 | O24: T3 | P24: LOOP4 | Q24: T4
J25: =$D$19=0 -> FALSE | K25: =$E$19=0 -> FALSE | L25: =$H$19=0 -> FALSE | M25: =$I$19=0 -> FALSE | N25: =$L$19=0 -> FALSE | O25: =$M$19=0 -> FALSE
J26: =COUNT($B$15:$C$15) -> 2 | K26: =COUNT($B$15:$C$15) -> 2 | L26: =COUNT($B$15:$C$15,$F$15:$G$15) -> 4 | M26: =COUNT($B$15:$C$15,$F$15:$G$15) -> 4 | N26: =COUNT($B$15:$C$15,$F$15:$G$15,$J$15:$K$15) -> 6 | O26: =COUNT($B$15:$C$15,$F$15:$G$15,$J$15:$K$15) -> 6
J27: =$B$15<=$B$11*2 -> TRUE | K27: =$B$15<=$B$11*2 -> TRUE | L27: =$B$15<=$B$11*2 -> TRUE | M27: =$B$15<=$B$11*2 -> TRUE | N27: =$B$15>=0 -> TRUE | O27: =$B$15<=$B$14 -> TRUE
J28: =$B$15>=0 -> TRUE | K28: =$B$15>=0 -> TRUE | L28: =$B$15:$C$15=INT($B$15:$C$15) -> TRUE | M28: =$B$15:$C$15=INT($B$15:$C$15) -> TRUE | N28: =$F$15<=$F$14 -> TRUE | O28: =$B$15:$C$15=INT($B$15:$C$15) -> TRUE
J29: =$B$15:$C$15=INT($B$15:$C$15) -> TRUE | K29: =$B$15:$C$15=INT($B$15:$C$15) -> TRUE | L29: =$C$15<=255 -> TRUE | M29: =$C$15<=255 -> TRUE | N29: =$J$15:$K$15=INT($J$15:$K$15) -> TRUE | O29: =$C$15<=255 -> TRUE
J30: =$C$15<=255 -> TRUE | K30: =$C$15<=255 -> TRUE | L30: =$C$15>=1 -> TRUE | M30: =$C$15>=1 -> TRUE | N30: =$B$15:$C$15=INT($B$15:$C$15) -> TRUE | O30: =$C$15>=1 -> TRUE
J31: =$C$15>=1 -> TRUE | K31: =$C$15>=1 -> TRUE | L31: =$B$15>=0 -> TRUE | M31: =$B$15>=0 -> TRUE | N31: =$C$15<=255 -> TRUE | O31: =$B$15>=0 -> TRUE
J32: ={32767,32767,0.000001,0.01,FALSE,FALSE,TRUE,1,1,1,0.0001,TRUE} -> 32767 | K32: ={32767,32767,0.000001,0.01,FALSE,FALSE,TRUE,1,1,1,0.0001,TRUE} -> 32767 | L32: =$F$15<=$F$11*2 -> TRUE | M32: =$F$15<=$F$11*2 -> TRUE | N32: =$C$15>=1 -> TRUE | O32: =$F$15>=0 -> TRUE
J33: ={0,0,3,100,0,TRUE,FALSE,0.075,0,0,FALSE,30} -> 0 | K33: ={0,0,3,100,0,TRUE,FALSE,0.075,0,0,FALSE,30} -> 0 | L33: =$F$15>=0 -> TRUE | M33: =$F$15>=0 -> TRUE | N33: =$F$15>=0 -> TRUE | O33: =$G$15>=1 -> TRUE
L34: =$F$15:$G$15=INT($F$15:$G$15) -> TRUE | M34: =$F$15:$G$15=INT($F$15:$G$15) -> TRUE | N34: =$F$15:$G$15=INT($F$15:$G$15) -> TRUE | O34: =$F$15:$G$15=INT($F$15:$G$15) -> TRUE
L35: =$G$15<=255 -> TRUE | M35: =$G$15>=1 -> TRUE | N35: =$G$15<=255 -> TRUE | O35: =$K$15>=1 -> TRUE
L36: =$G$15>=1 -> TRUE | M36: =$G$15<=255 -> TRUE | N36: =$K$15<=255 -> TRUE | O36: =$K$15<=255 -> TRUE
L37: ={32767,32767,0.000001,0.01,FALSE,FALSE,TRUE,1,1,1,0.0001,TRUE} -> 32767 | M37: ={32767,32767,0.000001,0.01,FALSE,FALSE,TRUE,1,1,1,0.0001,TRUE} -> 32767 | N37: =$K$15>=1 -> TRUE | O37: =$G$15<=255 -> TRUE
L38: ={0,0,3,100,0,TRUE,FALSE,0.075,0,0,FALSE,30} -> 0 | M38: ={0,0,1,100,0,TRUE,FALSE,0.075,0,0,FALSE,30} -> 0 | N38: =$G$15>=1 -> TRUE | O38: =$J$15<=$J$11*2 -> TRUE
N39: =$J$15<=$J$11*2 -> TRUE | O39: =$J$15>=0 -> TRUE
N40: =$B$15<=$B$14 -> TRUE | O40: =$F$15<=$F$14 -> TRUE
N41: =$J$15>=0 -> TRUE | O41: =$J$15:$K$15=INT($J$15:$K$15) -> TRUE
N42: ={32767,32767,0.000001,0.01,FALSE,FALSE,TRUE,1,1,1,0.0001,TRUE} -> 32767 | O42: ={32767,32767,0.000001,0.01,FALSE,FALSE,TRUE,1,1,1,0.0001,TRUE} -> 32767
N43: ={0,0,3,100,0,TRUE,FALSE,0.075,0,0,FALSE,30} -> 0 | O43: ={0,0,3,100,0,TRUE,FALSE,0.075,0,0,FALSE,30} -> 0

Sheet 更新履歴
B2: 2014-12-28 | C2: 初版作成
